bitfinex-derivatives/quotes_BTCF0:USTF0_20251208
["timestamp","ask_amount","ask_price","bid_price","bid_amount"]
[1765164642753,0.09163,91285.0,91284.0,0.432]
[1765164642956,0.09163,91285.0,91284.0,0.43]
[1765164643149,0.09163,91285.0,91284.0,0.432]
[1765164644960,0.09263,91285.0,91284.0,0.432]
[1765164645256,0.09263,91285.0,91284.0,0.132]
[1765164645654,0.09263,91285.0,91284.0,0.352]
[1765164645955,0.09263,91285.0,91284.0,0.112]
[1765164646154,0.11899,91285.0,91284.0,0.112]
[1765164649362,0.11899,91285.0,91284.0,0.422]
[1765164649560,0.11899,91285.0,91284.0,0.102]
[1765164650558,0.11899,91285.0,91284.0,0.402]
[1765164652154,0.11899,91285.0,91284.0,0.192]
[1765164652556,0.1299438,91285.0,91284.0,0.002]
[1765164657561,0.11899,91285.0,91284.0,0.412]
[1765164659155,0.11899,91285.0,91284.0,0.052]
[1765164659665,0.11899,91285.0,91284.0,0.002]
[1765164661269,0.1437763,91285.0,91284.0,0.002]
[1765164661665,0.11899,91285.0,91284.0,0.002]
[1765164663358,0.14377894,91285.0,91284.0,0.002]
[1765164664068,0.11899,91285.0,91284.0,0.002]
[1765164666971,0.11899,91285.0,91284.0,0.362]
[1765164673067,0.07432,91285.0,91284.0,0.362]
[1765164673280,0.001,91285.0,91284.0,0.362]
[1765164673775,0.06139,91285.0,91284.0,0.362]
[1765164673971,0.02346,91285.0,91284.0,0.362]
[1765164674169,0.06562,91295.0,91285.0,0.0109538]
[1765164674371,0.10155,91295.0,91294.0,0.0109527]
[1765164674669,0.10155,91295.0,91294.0,0.4109527]
[1765164675967,0.10355,91295.0,91294.0,0.4109527]
[1765164676386,0.11855,91295.0,91294.0,0.4109527]
[1765164676669,0.12155,91295.0,91294.0,0.4119527]
[1765164683566,0.02,91295.0,91294.0,0.4119527]
[1765164683770,0.04246,91295.0,91294.0,0.4119527]
[1765164684083,0.11632,91295.0,91294.0,0.4119527]
[1765164690081,0.08039,91295.0,91294.0,0.4119527]
[1765164690675,0.11632,91295.0,91294.0,0.4119527]
[1765164692880,0.11632,91295.0,91294.0,0.401]
[1765164695474,0.11632,91295.0,91294.0,0.001]
[1765164695685,0.14108856,91295.0,91294.0,0.001]
[1765164695885,0.07386,91283.0,91282.0,0.0109541]
[1765164696186,0.07386,91283.0,91282.0,0.2809541]
[1765164697185,0.07386,91283.0,91282.0,0.27]
[1765164697875,0.07386,91283.0,91282.0,0.272]
[1765164698580,0.07386,91283.0,91282.0,0.273]
[1765164701984,0.07386,91283.0,91282.0,0.2839541]
[1765164702287,0.07386,91283.0,91282.0,0.003]
[1765164704277,0.07386,91283.0,91282.0,0.353]
[1765164704489,0.07386,91283.0,91282.0,0.003]
[1765164707881,0.07386,91283.0,91282.0,0.233]
[1765164708189,0.07386,91283.0,91282.0,0.003]
[1765164713388,0.07386,91283.0,91282.0,0.423]
[1765164718196,0.07386,91283.0,91282.0,0.093]
[1765164718996,0.07386,91283.0,91282.0,0.003]
[1765164725404,0.09869336,91283.0,91282.0,0.003]
[1765164727097,0.45869336,91283.0,91282.0,0.003]
[1765164729497,0.15869336,91283.0,91282.0,0.003]
[1765164729902,0.48869336,91283.0,91282.0,0.003]
[1765164733106,0.09869336,91283.0,91282.0,0.003]
[1765164733302,0.09869336,91283.0,91282.0,0.423]
[1765164733499,0.07386,91283.0,91282.0,0.423]
[1765164735095,0.03793,91283.0,91282.0,0.423]
[1765164735406,0.05256,91285.0,91283.0,0.010954]
[1765164735606,0.02246,91285.0,91283.0,0.49978506]
[1765164735904,0.02132,91288.0,91287.0,0.0109535]
[1765164736100,0.02246,91290.0,91287.0,0.0109535]
[1765164736101,0.02246,91290.0,91287.0,0.4209535]
[1765164736303,0.08328,91295.0,91294.0,0.0109527]
[1765164736495,0.08328,91295.0,91294.0,0.4209527]
[1765164737008,0.02246,91295.0,91294.0,0.4209527]
[1765164737906,0.03646,91295.0,91294.0,0.4209527]
[1765164738109,0.04146,91295.0,91294.0,0.4219527]
[1765164739010,0.07156,91295.0,91294.0,0.4219527]
[1765164739415,0.10228,91295.0,91294.0,0.4219527]
[1765164741207,0.10228,91295.0,91294.0,0.411]
[1765164757618,0.04146,91295.0,91294.0,0.411]
[1765164760822,0.10228,91295.0,91294.0,0.411]
[1765164765426,0.10228,91295.0,91294.0,0.4897628]
[1765164765824,0.10228,91295.0,91294.0,0.411]
[1765164766221,0.07156,91295.0,91294.0,0.411]
[1765164766422,0.09962,91295.0,91294.0,0.411]
[1765164768722,0.09962,91295.0,91294.0,0.4898228]
[1765164769318,0.09962,91295.0,91294.0,0.411]
[1765164771622,0.09962,91295.0,91294.0,0.4898228]
[1765164772423,0.09062,91295.0,91294.0,0.4888228]
[1765164774024,0.08062,91295.0,91294.0,0.4888228]
[1765164774326,0.08062,91295.0,91294.0,0.4918228]
[1765164774828,0.08062,91295.0,91294.0,0.415]
[1765164775419,0.08062,91295.0,91294.0,0.413]
[1765164777019,0.08062,91295.0,91294.0,0.414]
[1765164777419,0.08062,91295.0,91294.0,0.412]
[1765164777619,0.08062,91295.0,91294.0,0.415]
[1765164778431,0.08062,91295.0,91294.0,0.412]
[1765164778618,0.02246,91295.0,91294.0,0.415]
[1765164779325,0.04707428,91300.0,91299.0,0.0109521]
[1765164779532,0.04691,91305.0,91304.0,0.0109515]
[1765164779827,0.06440274,91305.0,91304.0,0.3909515]
[1765164780630,0.05505428,91314.0,91313.0,0.0109504]
[1765164780824,0.05505428,91314.0,91313.0,0.4109504]
[1765164782123,0.05505428,91314.0,91313.0,0.4119504]
[1765164782832,0.05505428,91314.0,91313.0,0.4139504]
[1765164785336,0.05505428,91314.0,91313.0,0.403]
[1765164785533,0.05505428,91314.0,91313.0,0.053]
[1765164787032,0.06205428,91314.0,91313.0,0.052]
[1765164787429,0.06405428,91314.0,91313.0,0.05]
[1765164787630,0.05489,91306.0,91305.0,0.0109513]
[1765164787828,0.05489,91306.0,91305.0,0.4109513]
[1765164789242,0.05689,91306.0,91305.0,0.4109513]
[1765164789847,0.06489,91306.0,91305.0,0.4109513]
[1765164790550,0.07189,91306.0,91305.0,0.4119513]
[1765164791050,0.06689,91306.0,91305.0,0.4119513]
[1765164791250,0.06189,91306.0,91305.0,0.4109513]
[1765164791454,0.06389,91306.0,91305.0,0.4109513]
[1765164792159,0.05591,91303.0,91302.0,0.23476]
[1765164792356,0.05591,91303.0,91302.0,0.36]
[1765164793859,0.05591,91303.0,91302.0,0.362]
[1765164794243,0.05691,91303.0,91302.0,0.362]
[1765164794649,0.05691,91303.0,91302.0,0.361]
[1765164805554,0.001,91303.0,91302.0,0.40395647]
[1765164805761,0.001,91303.0,91302.0,0.48264831]
[1765164806361,0.001,91303.0,91302.0,0.40395647]
[1765164811860,0.00016428,91314.0,91303.0,0.0109516]
[1765164812051,0.02882428,91314.0,91313.0,0.0109504]
[1765164812250,0.02882428,91314.0,91313.0,0.9089904]
[1765164812452,0.00016428,91314.0,91313.0,0.9089904]
[1765164813162,0.00516428,91314.0,91313.0,0.9099904]
[1765164813354,0.02016428,91314.0,91313.0,0.9099904]
[1765164813953,0.07719428,91314.0,91313.0,0.9099904]
[1765164814761,0.06219428,91314.0,91313.0,0.9129904]
[1765164814961,0.05719428,91314.0,91313.0,0.9149904]
[1765164815260,0.05719428,91314.0,91313.0,0.9119904]
[1765164815463,0.05719428,91314.0,91313.0,0.9149904]
[1765164815651,0.05719428,91314.0,91313.0,0.9119904]
[1765164815860,0.05719428,91314.0,91313.0,0.9109904]
[1765164816159,0.05719428,91314.0,91313.0,0.9119904]
[1765164817650,0.05719428,91314.0,91313.0,0.90104]
[1765164817856,0.05719428,91314.0,91313.0,0.901]
[1765164818159,0.05719428,91314.0,91313.0,0.393]
[1765164818755,0.05719428,91314.0,91313.0,0.391]
[1765164818957,0.05719428,91314.0,91313.0,0.392]
[1765164819153,0.06319428,91314.0,91313.0,0.392]
[1765164819551,0.05719428,91314.0,91313.0,0.39]
[1765164819755,0.06519428,91314.0,91313.0,0.39]
[1765164820465,0.03682428,91314.0,91313.0,0.39]
[1765164820666,0.06519428,91314.0,91313.0,0.39]
[1765164821061,0.05719428,91314.0,91313.0,0.391]
[1765164821262,0.06219428,91314.0,91313.0,0.391]
[1765164821765,0.05719428,91314.0,91313.0,0.391]
[1765164821965,0.05719428,91314.0,91313.0,0.393]
[1765164822765,0.02884428,91314.0,91313.0,0.393]
[1765164822959,0.05640428,91314.0,91313.0,0.393]
[1765164823766,0.05640428,91314.0,91313.0,0.391]
[1765164823967,0.05640428,91314.0,91313.0,0.393]
[1765164825267,0.05640428,91314.0,91313.0,0.391]
[1765164825456,0.05640428,91314.0,91313.0,0.393]
[1765164825661,0.05640428,91314.0,91313.0,0.003]
[1765164825861,0.05640428,91314.0,91313.0,0.002]
[1765164827364,0.06940428,91314.0,91313.0,0.002]
[1765164827564,0.07275,91305.0,91304.0,0.53400155]
[1765164827776,0.07275,91305.0,91304.0,0.7920314]
[1765164829372,0.07275,91305.0,91304.0,0.7930314]
[1765164830269,0.04519,91305.0,91304.0,0.7930314]
[1765164830659,0.07275,91310.0,91309.0,0.0109509]
[1765164830874,0.07275,91310.0,91309.0,0.4109509]
[1765164831764,0.07675,91310.0,91309.0,0.4119509]
[1765164832078,0.016,91310.0,91309.0,0.4119509]
[1765164832565,0.012,91310.0,91309.0,0.4129509]
[1765164833565,0.00016428,91314.0,91313.0,0.0109504]
[1765164833870,0.02884428,91314.0,91313.0,0.3709504]
[1765164834070,0.05640428,91314.0,91313.0,0.3709504]
[1765164834880,0.05640428,91314.0,91313.0,0.3729504]
[1765164835270,0.05640428,91314.0,91313.0,0.3739504]
[1765164836677,0.05640428,91314.0,91313.0,0.3729504]
[1765164836879,0.05640428,91314.0,91313.0,0.3739504]
[1765164837978,0.00016428,91314.0,91313.0,0.3739504]
[1765164838179,0.05640428,91314.0,91313.0,0.3739504]
[1765164839575,0.05640428,91314.0,91313.0,0.363]
[1765164840370,0.05640428,91314.0,91313.0,0.362]
[1765164840579,0.05640428,91314.0,91313.0,0.363]
[1765164840779,0.05640428,91314.0,91313.0,0.361]
[1765164840979,0.05640428,91314.0,91313.0,0.362]
[1765164841478,0.05640428,91314.0,91313.0,0.87]
[1765164841680,0.05640428,91314.0,91313.0,0.869]
[1765164842584,0.00016428,91314.0,91313.0,0.869]
[1765164842781,0.02884428,91314.0,91313.0,0.869]
[1765164843081,0.06140428,91314.0,91313.0,0.869]
[1765164843386,0.06240428,91314.0,91313.0,0.868]
[1765164843574,0.05740428,91314.0,91313.0,0.868]
[1765164843977,0.05740428,91314.0,91313.0,0.36]
[1765164844183,0.05624,91305.0,91304.0,0.50909015]
[1765164844378,0.05624,91305.0,91304.0,0.80712]
[1765164846387,0.05624,91305.0,91304.0,0.80812]
[1765164846887,0.05624,91305.0,91304.0,0.81012]
[1765164848179,0.07422,91305.0,91304.0,0.81012]
[1765164850096,0.07422,91305.0,91304.0,0.80712]
[1765164850289,0.07422,91305.0,91304.0,0.81012]
[1765164851884,0.07422,91305.0,91304.0,0.373]
[1765164852086,0.07422,91305.0,91304.0,0.003]
[1765164852286,0.07422,91305.0,91295.0,0.00016428]
[1765164852287,0.05748,91296.0,91295.0,0.00016428]
[1765164853287,0.0751,91296.0,91295.0,0.00016428]
[1765164853483,0.0751,91296.0,91295.0,0.00416428]
[1765164853683,0.0751,91296.0,91295.0,0.00716428]
[1765164855794,0.0751,91296.0,91295.0,0.00760428]
[1765164856099,0.0751,91296.0,91295.0,0.35760428]
[1765164857997,0.0751,91296.0,91295.0,0.00760428]
[1765164858201,0.0751,91296.0,91295.0,0.37760428]
[1765164858997,0.0751,91300.0,91299.0,0.00044]
[1765164859298,0.0751,91300.0,91299.0,0.37044]
[1765164860089,0.0751,91300.0,91299.0,0.37244]
[1765164861602,0.0751,91300.0,91299.0,0.37344]
[1765164862098,0.05764428,91314.0,91313.0,0.00044]
[1765164862299,0.05764428,91314.0,91313.0,0.42044]
[1765164862601,0.05764428,91314.0,91313.0,0.43044]
[1765164863894,0.06364428,91314.0,91313.0,0.43144]
[1765164864592,0.07764428,91314.0,91313.0,0.43144]
[1765164866998,0.02016428,91314.0,91313.0,0.43144]
[1765164867506,0.04975428,91314.0,91313.0,0.43144]
[1765164867695,0.09526428,91314.0,91313.0,0.43144]
[1765164872403,0.09526428,91314.0,91313.0,0.00144]
[1765164872600,0.09526428,91314.0,91313.0,0.23144]
[1765164873898,0.09526428,91314.0,91313.0,0.231]
[1765164875099,0.09526428,91314.0,91313.0,0.001]
[1765164881811,0.05748,91302.0,91301.0,0.0109518]
[1765164882008,0.05748,91302.0,91301.0,0.2109518]
[1765164882214,0.01672,91300.0,91295.0,0.00016428]
[1765164882412,0.05848,91296.0,91295.0,0.03016428]
[1765164882913,0.05848,91296.0,91295.0,0.00016428]
[1765164883101,0.05848,91288.0,91287.0,0.0109535]
[1765164883306,0.05848,91288.0,91287.0,0.0113335]
[1765164884604,0.05848,91288.0,91287.0,0.0173335]
[1765164884806,0.05848,91288.0,91287.0,0.0213335]
[1765164889916,0.05848,91288.0,91287.0,0.0209535]
[1765164890112,0.05848,91288.0,91287.0,0.01]
[1765164890606,0.05848,91288.0,91287.0,0.44076]
[1765164898322,0.05848,91288.0,91287.0,0.02076]
[1765164899019,0.05848,91288.0,91287.0,0.01]
[1765164900328,0.07348,91275.0,91274.0,0.010955]
[1765164900626,0.07348,91275.0,91274.0,0.011335]
[1765164900823,0.07348,91275.0,91274.0,0.011715]
[1765164902724,0.07548,91275.0,91274.0,0.011715]
[1765164905126,0.07548,91275.0,91274.0,0.431715]
[1765164905332,0.07548,91275.0,91274.0,0.42076]
[1765164905731,0.07548,91275.0,91274.0,0.20076]
[1765164908532,0.07548,91275.0,91274.0,0.42076]
[1765164910133,0.05637,91269.0,91268.0,7.817e-05]
[1765164910335,0.05637,91269.0,91268.0,0.08007817]
[1765164910536,0.05637,91269.0,91268.0,0.08045817]
[1765164910842,0.05637,91269.0,91268.0,0.38083817]
[1765164911440,0.05637,91269.0,91268.0,0.38183817]
[1765164912036,0.05837,91269.0,91268.0,0.38183817]
[1765164916544,0.05837,91269.0,91268.0,0.14107817]
[1765164916935,0.05933,91249.0,91240.0,0.07868239]
[1765164917138,0.05933,91247.0,91239.0,0.04798475]
[1765164917842,0.05940956,91247.0,91242.0,0.01193299]
[1765164918146,0.05940956,91247.0,91246.0,0.00627399]
[1765164918642,0.05940956,91247.0,91246.0,0.00365399]
[1765164918939,0.05940956,91247.0,91246.0,0.01499249]
[1765164919336,0.05940956,91247.0,91246.0,0.01799249]
[1765164919639,0.05940956,91247.0,91246.0,0.00627399]
[1765164921037,0.05940956,91247.0,91246.0,0.01799249]
[1765164922040,7.956e-05,91247.0,91246.0,0.29799249]
[1765164922750,0.00016437,91257.0,91256.0,0.00076]
[1765164922943,0.00016437,91257.0,91256.0,0.37076]
[1765164923146,0.05949437,91257.0,91256.0,0.37076]
[1765164923345,0.03005437,91257.0,91256.0,0.37076]
[1765164923547,0.00016437,91257.0,91256.0,0.37076]
[1765164923745,0.03005437,91257.0,91256.0,0.37076]
[1765164924152,0.00016437,91257.0,91256.0,0.37076]
[1765164924449,0.00016437,91257.0,91256.0,0.37176]
[1765164925434,0.00016437,91257.0,91256.0,0.37276]
[1765164926546,0.05949437,91257.0,91256.0,0.37276]
[1765164928349,0.05949437,91257.0,91256.0,0.37176]
[1765164929547,0.00016437,91257.0,91256.0,0.37176]
[1765164930251,0.03005437,91257.0,91256.0,0.37176]
[1765164931850,0.05949437,91257.0,91256.0,0.37176]
[1765164934054,0.00016437,91257.0,91256.0,0.37176]
[1765164939151,0.03005437,91257.0,91256.0,0.37176]
[1765164939960,0.05949437,91257.0,91256.0,0.37176]
[1765164950164,0.05949437,91257.0,91256.0,0.45044239]
[1765164951067,0.05949437,91257.0,91256.0,0.37176]
[1765164952563,0.01653,91268.0,91256.0,0.37176]
[1765164952766,0.0447,91272.0,91271.0,0.00076]
[1765164952967,0.09964086,91272.0,91271.0,0.39076]
[1765164953267,0.07481,91272.0,91271.0,0.39076]
[1765164954162,0.09081,91272.0,91271.0,0.39076]
[1765164955268,0.09581,91272.0,91271.0,0.39176]
[1765164955459,0.021,91272.0,91271.0,0.39176]
[1765164955661,0.00016437,91281.0,91280.0,0.03382]
[1765164955967,0.00016437,91281.0,91280.0,0.43382]
[1765164956868,0.00016437,91281.0,91280.0,0.43782]
[1765164957065,0.02852437,91281.0,91280.0,0.43782]
[1765164957964,0.00016437,91281.0,91280.0,0.43782]
[1765164958262,0.01653,91290.0,91280.0,0.43782]
[1765164958458,0.07086,91290.0,91289.0,0.03382]
[1765164958664,0.07086,91290.0,91289.0,0.46382]
[1765164959261,0.02721,91290.0,91289.0,0.4747733]
[1765164959468,0.07086,91295.0,91294.0,0.0447727]
[1765164959672,0.07086,91295.0,91294.0,0.4147727]
[1765164960166,0.07086,91295.0,91294.0,0.42669224]
[1765164961568,0.00016437,91299.0,91298.0,0.0447722]
[1765164961769,0.04425,91315.0,91314.0,0.03382]
[1765164962067,0.07137,91315.0,91314.0,0.4747703]
[1765164962964,0.08937,91315.0,91314.0,0.4747703]
[1765164963572,0.07233,91315.0,91314.0,0.4747703]
[1765164963765,0.00016427,91324.0,91323.0,0.0447692]
[1765164964070,0.00016427,91324.0,91323.0,0.4747692]
[1765164964958,0.02216427,91324.0,91323.0,0.4747692]
[1765164965472,0.02916427,91324.0,91323.0,0.4757692]
[1765164965975,0.08349427,91324.0,91323.0,0.4757692]
[1765164966265,0.08349427,91324.0,91323.0,0.46482]
[1765164966467,0.08349427,91324.0,91323.0,0.081]
[1765164966770,0.08349427,91324.0,91323.0,0.09791]
[1765164967169,0.08349427,91324.0,91323.0,0.081]
[1765164967874,0.08349427,91324.0,91323.0,0.001]
[1765164971075,0.05433,91318.0,91317.0,0.0109499]
[1765164972078,0.05433,91318.0,91317.0,0.0288599]
[1765164972263,0.06033,91318.0,91317.0,0.2077699]
[1765164972668,0.06433,91318.0,91317.0,0.2077699]
[1765164973069,0.06433,91318.0,91317.0,0.4177699]
[1765164974168,0.06433,91318.0,91317.0,0.4398599]
[1765164974371,0.06433,91318.0,91317.0,0.1319499]
[1765164974575,0.06433,91318.0,91317.0,0.4598599]
[1765164974773,0.06433,91318.0,91317.0,0.4777699]
[1765164976378,0.06433,91318.0,91317.0,0.4419499]
[1765164976688,0.06433,91318.0,91317.0,0.4777699]
[1765164978479,0.06433,91318.0,91317.0,0.4419499]
[1765164978778,0.06433,91318.0,91317.0,0.001]
[1765164980374,0.06433,91318.0,91317.0,0.45682]
[1765164980576,0.06433,91318.0,91317.0,0.03682]
[1765164980775,0.06433,91318.0,91317.0,0.19682]
[1765164980975,0.06433,91318.0,91317.0,0.17891]
[1765164982172,0.06433,91318.0,91317.0,0.001]
[1765164982780,0.06433,91318.0,91308.0,0.07205392]
[1765164983082,0.06433,91318.0,91305.0,0.00016427]
[1765164983083,0.05915,91306.0,91305.0,0.00016427]
[1765164983283,0.42915,91306.0,91305.0,0.00016427]
[1765164983587,0.42915,91306.0,91293.0,0.0109528]
[1765164983588,0.07578,91294.0,91293.0,0.0109528]
[1765164983889,0.05915,91290.0,91289.0,0.0109533]
[1765164984081,0.05915,91290.0,91289.0,0.3709533]
[1765164984271,0.05915,91290.0,91289.0,0.4067733]
[1765164984694,0.05915,91290.0,91289.0,0.41801125]
[1765164986583,0.06215,91290.0,91289.0,0.42401125]
[1765164986781,0.06215,91290.0,91289.0,0.04610125]
[1765164987085,0.05915,91290.0,91289.0,0.05210125]
[1765164987285,0.05915,91290.0,91289.0,0.49001125]
[1765164987688,0.05915,91290.0,91289.0,0.48401125]
[1765164987990,0.05915,91290.0,91289.0,0.22401125]
[1765164988177,0.06215,91290.0,91289.0,0.21901125]
[1765164988373,0.06215,91290.0,91289.0,0.22301125]
[1765164989490,0.06215,91290.0,91289.0,0.22201125]
[1765164989491,0.05915,91290.0,91289.0,0.22201125]
[1765164989686,0.05915,91290.0,91289.0,0.21801125]
[1765164989889,0.05915,91290.0,91289.0,0.22901125]
[1765164990284,0.05915,91290.0,91289.0,0.22201125]
[1765164990490,0.06215,91290.0,91289.0,0.22201125]
[1765164990878,0.06215,91290.0,91289.0,0.21801125]
[1765164991089,0.05915,91290.0,91289.0,0.01523795]
[1765164991389,0.07878,91290.0,91289.0,0.03314795]
[1765164991591,0.07878,91290.0,91289.0,0.45105795]
[1765164992200,0.07878,91290.0,91289.0,0.10105795]
[1765164992993,0.07878,91290.0,91289.0,0.08982]
[1765164993288,0.05915,91281.0,91280.0,0.16218211]
[1765164993483,0.05915,91281.0,91280.0,0.40807427]
[1765164993692,0.05915,91281.0,91280.0,0.42598427]
[1765164993890,0.05915,91281.0,91280.0,0.43728097]
[1765164994288,0.05915,91281.0,91280.0,0.00016427]
[1765164994484,0.05915,91281.0,91280.0,0.00516427]
[1765164996187,0.06215,91281.0,91280.0,0.00516427]
[1765164996388,0.06515,91281.0,91280.0,0.00016427]
[1765164996784,0.06215,91281.0,91280.0,0.00016427]
[1765164996991,0.06815,91281.0,91280.0,0.01907427]
[1765164997894,0.06515,91281.0,91280.0,0.03002867]
[1765164998084,0.06815,91281.0,91280.0,0.03002867]
[1765164998287,0.06815,91281.0,91280.0,0.00116427]
[1765164998485,0.48815,91281.0,91280.0,0.00116427]
[1765164998991,0.05915,91274.0,91273.0,9.598e-05]
[1765164999184,0.05915,91261.0,91260.0,0.0838484]
[1765164999495,0.05915,91261.0,91260.0,0.32739611]
[1765164999681,0.05915,91261.0,91260.0,0.31582]
[1765164999882,0.01663,91266.0,91251.0,0.0960568]
[1765164999883,0.01663,91254.0,91251.0,0.01791]
[1765165000188,0.05915,91251.0,91250.0,0.00016436]
[1765165002189,0.05915,91251.0,91250.0,0.01807436]
[1765165002489,0.05915,91251.0,91250.0,0.02116436]
[1765165005089,0.05915,91251.0,91250.0,0.03212346]
[1765165005293,0.05915,91251.0,91250.0,0.06794346]
[1765165007694,0.05915,91251.0,91250.0,0.05003346]
[1765165007893,0.05915,91251.0,91250.0,0.02116436]
[1765165012002,0.05915,91251.0,91250.0,0.00316436]
[1765165012206,0.05915,91251.0,91250.0,0.02016436]
[1765165012902,0.05915,91251.0,91250.0,0.00029436]
[1765165015203,0.05915,91251.0,91250.0,0.01125346]
[1765165015399,0.05915,91251.0,91246.0,0.01123349]
[1765165015704,0.05778,91247.0,91246.0,0.01123349]
[1765165017299,0.05778,91247.0,91246.0,0.00127399]
[1765165018100,0.05778,91247.0,91246.0,0.00027399]
[1765165018301,0.05778,91247.0,91246.0,0.00127399]
[1765165019406,0.05778,91247.0,91246.0,0.04805359]
[1765165019602,0.05778,91247.0,91246.0,0.03014359]
[1765165019802,0.05778,91247.0,91246.0,0.01223359]
[1765165020806,0.05778,91247.0,91246.0,0.00127399]
[1765165022000,0.42778,91247.0,91246.0,0.00127399]
[1765165022899,0.05458,91238.0,91237.0,0.0838484]
[1765165023103,0.05458,91238.0,91237.0,0.03582]
[1765165023302,0.05458,91238.0,91237.0,0.03263]
[1765165023603,0.05458,91238.0,91237.0,0.0435906]
[1765165023808,0.05458,91238.0,91237.0,0.0430706]
[1765165024308,0.05458,91238.0,91237.0,0.0450706]
[1765165024899,0.05458,91238.0,91237.0,0.002]
[1765165025302,0.05458,91238.0,91237.0,0.0162]
[1765165025505,0.05458,91238.0,91237.0,0.0202]
[1765165025708,0.01726,91230.0,91220.0,0.0764284]
[1765165026009,0.01726,91230.0,91212.0,0.01430154]
[1765165026010,0.05458,91213.0,91212.0,0.01430154]
[1765165026207,0.05458,91213.0,91212.0,0.44850154]
[1765165028199,0.05458,91213.0,91212.0,0.45981313]
[1765165028611,0.05458,91213.0,91212.0,0.46081313]
[1765165036012,0.05458,91213.0,91212.0,0.42081313]
[1765165044612,0.05458,91213.0,91212.0,0.02530154]
[1765165045120,0.05458,91213.0,91212.0,0.03950154]
[1765165046413,0.05458,91213.0,91212.0,0.02530154]
[1765165046815,0.05458,91213.0,91212.0,0.01110154]
[1765165047327,0.05458,91213.0,91212.0,0.00110154]
[1765165047524,0.05458,91213.0,91212.0,0.02950154]
[1765165047721,0.05458,91213.0,91212.0,0.41950154]
[1765165048422,0.0172,91215.0,91212.0,0.41950154]
[1765165048620,0.02924436,91222.0,91221.0,0.0393626]
[1765165048822,0.00016436,91222.0,91221.0,0.3893626]
[1765165049026,0.02924436,91222.0,91221.0,0.3893626]
[1765165049221,0.02954929,91229.0,91228.0,0.0656417]
[1765165049427,0.00010929,91229.0,91228.0,0.4656417]
[1765165051021,0.00710929,91229.0,91228.0,0.4656417]
[1765165051426,0.00910929,91229.0,91228.0,0.4656417]
[1765165052016,0.00710929,91229.0,91228.0,0.4656417]
[1765165052234,0.03718929,91229.0,91228.0,0.4656417]
[1765165053225,0.06662929,91229.0,91228.0,0.4656417]
[1765165053431,0.06662929,91229.0,91228.0,0.0856417]
[1765165053723,0.06662929,91229.0,91228.0,0.3456417]
[1765165053923,0.03718929,91229.0,91228.0,0.3456417]
[1765165054126,0.00810929,91229.0,91228.0,0.3456417]
[1765165054523,0.06662929,91229.0,91228.0,0.3456417]
[1765165057427,0.06662929,91229.0,91228.0,0.07735]
[1765165057635,0.06662929,91229.0,91228.0,0.02735]
[1765165058132,0.06662929,91229.0,91228.0,0.05468]
[1765165059128,0.05852,91225.0,91224.0,0.0656422]
[1765165059325,0.00810929,91229.0,91228.0,0.0109617]
[1765165059525,0.00810929,91229.0,91228.0,0.4856417]
[1765165059737,0.03718929,91229.0,91228.0,0.4856417]
[1765165060236,0.03018929,91229.0,91228.0,0.4856417]
[1765165060436,0.02918929,91229.0,91228.0,0.4856417]
[1765165060821,0.03618929,91229.0,91228.0,0.4856417]
[1765165061026,0.06562929,91229.0,91228.0,0.4856417]
[1765165061239,0.06662929,91229.0,91228.0,0.4856417]
[1765165061934,0.06662929,91229.0,91228.0,0.1756417]
[1765165062437,0.06662929,91229.0,91228.0,0.02735]
[1765165062935,0.07493,91224.0,91223.0,0.0665223]
[1765165063127,0.05806,91220.0,91219.0,0.01112716]
[1765165063327,0.05806,91220.0,91219.0,0.35112716]
[1765165063523,0.05806,91220.0,91219.0,0.37891716]
[1765165063722,0.05806,91220.0,91219.0,0.40668716]
[1765165064535,0.06106,91220.0,91219.0,0.40668716]
[1765165064926,0.06106,91220.0,91219.0,0.18768716]
[1765165065329,0.06106,91220.0,91219.0,0.12116436]
[1765165066532,0.06106,91220.0,91219.0,0.13212716]
[1765165068341,0.06106,91220.0,91219.0,0.00116436]
[1765165069739,0.06106,91220.0,91210.0,0.01098973]
[1765165069940,0.07493,91212.0,91211.0,0.0387537]
[1765165070242,0.07493,91212.0,91211.0,0.0356837]
[1765165070538,0.07493,91212.0,91211.0,0.0634537]
[1765165070744,0.07493,91212.0,91211.0,0.0356837]
[1765165071542,0.07493,91212.0,91187.0,0.0665266]
[1765165071543,0.07454,91188.0,91187.0,0.0665266]
[1765165071745,0.0746273,91188.0,91187.0,0.0665266]
[1765165071937,0.0746273,91188.0,91187.0,0.3765266]
[1765165073248,0.0756273,91188.0,91187.0,0.36756]
[1765165073433,0.0756273,91188.0,91187.0,0.05756]
[1765165073744,0.0756273,91188.0,91187.0,0.05556]
[1765165073948,0.0756273,91188.0,91187.0,0.05656]
[1765165074347,0.0591473,91188.0,91187.0,0.05656]
[1765165079543,0.0701138,91188.0,91187.0,0.001]
[1765165080047,0.0591473,91188.0,91187.0,0.05976]
[1765165080652,0.0591473,91188.0,91187.0,0.05876]
[1765165080855,0.0601473,91188.0,91187.0,0.05976]
[1765165082257,0.0601473,91188.0,91187.0,0.40976]
[1765165082451,0.0773373,91188.0,91187.0,0.05976]
[1765165082746,0.0773373,91188.0,91187.0,0.001]
[1765165083640,0.0773373,91188.0,91187.0,0.05976]
[1765165084942,0.0773373,91188.0,91187.0,0.001]
[1765165085142,0.05583,91174.0,91173.0,0.05876]
[1765165085357,0.05583,91162.0,91155.0,0.07876875]
[1765165085550,0.05583,91156.0,91155.0,0.19]
[1765165086156,0.05583,91156.0,91155.0,0.47024876]
[1765165086561,0.05592596,91156.0,91155.0,0.47524876]
[1765165086949,0.05592596,91156.0,91155.0,0.47024876]
[1765165087251,0.05892596,91156.0,91155.0,0.47024876]
[1765165087453,0.00309596,91156.0,91155.0,0.47024876]
[1765165088357,0.00409596,91156.0,91155.0,0.47024876]
[1765165091356,0.07211013,91180.0,91167.0,0.05876]
[1765165091652,0.05599455,91168.0,91167.0,0.35876]